Cogmind - Beta 10.2 @@@ ROGUE MODE // 2020.11.12 @ 08:41:17 // Halloween2020/ForbiddenLore Player: WayneKnight Result: Self-destructed Performance ------------- Evolutions (3) 1500 Regions Visited (10) 2000 Robots Destroyed (77) 385 Value Destroyed (2115) 2115 Prototype IDs (28) 560 Alien Tech Used (0) 0 Bonus (2044) 2044 TOTAL SCORE: 8604 Bonus ------- High Alert Combat Kills 78 Follower Combat Kills 385 Entered Garrisons 400 Used RIF Installer 1000 Aligned with FarCom 300 Friendly Fire -119 Cogmind --------- Core Integrity 477/700 Matter 211/300 Energy 0/100 System Corruption 7% Temperature Cool (0) Movement Hovering (146) Ox1 Location -7/Factory Parts ------- > --- POWER (1) -------- (None) > --- PROPULSION (4) --- Combat Airjet Combat Airjet Combat Airjet > --- UTILITY (6) ------ Large Storage Unit High-capacity Storage Unit Advanced Visual Processing Unit Advanced Sensor Array Advanced Signal Interpreter System Shield > --- WEAPON (2) ------- Power Maul Katana > --- INVENTORY (18) --- Improved Ion Engine Light Treads Large Storage Unit Advanced Sensor Array Hardened Medium Armor Plating Improved Medium Armor Plating Medium Reactive Plating Hacking Suite System Backup Module Improved Assault Rifle Minigun Enhanced Autogun AWS/Gauss Advanced EMP Blaster Guided EMP Blaster Missile Launcher Peak State ------------ > --- POWER ------------ Improved Deuterium Engine > --- PROPULSION ------- Light Treads Flexi-carbon Leg Potential Leg Potential Leg > --- UTILITY ---------- Large Storage Unit High-capacity Storage Unit High-capacity Storage Unit Advanced Sensor Array Advanced Signal Interpreter Improved Light Armor Plating > --- WEAPON ----------- Improved Assault Rifle Enhanced Autogun > --- INVENTORY -------- Improved Ion Engine Light Treads Light Treads Light Treads Gravmag System Gravmag System Combat Airjet Large Storage Unit Advanced Sensor Array Hacking Suite System Shield EM Shotgun EM Shotgun Heavy Assault Rifle Improved Assault Rifle Minigun Enhanced Autogun AWS/Gauss Advanced EMP Blaster Guided EMP Blaster Missile Launcher Katana [Rating: 57] Favorites ----------- Power Improved Ion Engine Engine Improved Ion Engine Propulsion Potential Leg Treads Light Treads Leg Potential Leg Hover Unit Combat Airjet Utility High-capacity Storage Unit Device Advanced Sensor Array Storage High-capacity Storage Unit Processor Advanced Signal Interpreter Hackware System Shield Protection Hardened Light Armor Plating Weapon Improved Assault Rifle Energy Gun EM Shotgun Energy Cannon Compact Ion Cannon Ballistic Gun Improved Assault Rifle Launcher Grenade Launcher Impact Weapon Power Maul Slashing Weapon Katana Build | -11 -10 -10 -10 -9 -8 -8 -8 -7 -7 -7 ------- Run | Scr Mat Min Exi Min Mat Sto Gar Fac Gar Fac Slots Evolved 6 | . . . . . 4 . . 2 . . Power . | . . . . . . . . . . . Propulsion 2 | . . . . . 1 . . 1 . . Utility 4 | . . . . . 3 . . 1 . . Weapon . | . . . . . . . . . . . Parts Attached 80 | 1 11 1 6 1 8 21 1 3 7 20 Power 6 | . 2 . . . 1 . . . 2 1 Engine 6 | . 2 . . . 1 . . . 2 1 Core . | . . . . . . . . . . . Reactor . | . . . . . . . . . . . Propulsion 12 | . 2 . 2 . 1 . . 1 . 6 Treads 5 | . 2 . . . . . . 1 . 2 Leg 3 | . . . 2 . 1 . . . . . Wheel . | . . . . . . . . . . . Hover 4 | . . . . . . . . . . 4 Flight . | . . . . . . . . . . . Utility 24 | 1 2 1 2 . 4 1 . 2 3 8 Device 5 | . . . . . . . . 1 1 3 Storage 7 | 1 2 1 2 . 1 . . . . . Processor 2 | . . . . . . . . 1 . 1 Hackware 1 | . . . . . . . . . . 1 Protection 9 | . . . . . 3 1 . . 2 3 Artifact . | . . . . . . . . . . . Weapon 38 | . 5 . 2 1 2 20 1 . 2 5 Energy Gun 3 | . 2 . 1 . . . . . . . Energy Cannon 2 | . . . . . . 2 . . . . Ballistic Gun 21 | . 3 . 1 1 2 10 1 . 1 2 Ballistic Cannon . | . . . . . . . . . . . Launcher 5 | . . . . . . 4 . . 1 . Special Weapon . | . . . . . . . . . . . Impact Weapon 1 | . . . . . . . . . . 1 Slashing Weapon 6 | . . . . . . 4 . . . 2 Piercing Weapon . | . . . . . . . . . . . Special Melee Weapon . | . . . . . . . . . . . Unidentified Prototypes 5 | . 1 . . . 1 3 . . . . Parts Lost 10 | . 2 . . 1 . . . . 3 4 Power 3 | . 1 . . . . . . . 1 1 Propulsion 3 | . . . . . . . . . . 3 Utility 2 | . . . . . . . . . 2 . Weapon 2 | . 1 . . 1 . . . . . . Highest Loss Streak 2 | . 1 . . 1 . . . . 2 2 Average Slot Usage (%) 97 | . 99 100 72 97 100 99 100 98 96 99 Engine 10 | . 14 14 14 14 9 9 9 7 6 6 Treads 7 | . 17 28 21 . . . . 6 7 11 Leg 19 | . 10 . 6 28 27 27 27 23 23 16 Device 1 | . . . . . . . . 6 3 6 Storage 26 | . 28 28 28 28 27 27 27 23 23 22 Processor 2 | . . . . . . . . 6 7 13 Protection 8 | . . . . . 18 18 18 7 7 2 Energy Gun 4 | . 19 14 . 10 . . . . . . Ballistic Gun 13 | . 8 14 . 15 18 15 14 15 14 11 Naked Turns . | . . . . . . . . . . . Heaviest Build 109 | 17 45 61 77 77 106 109 106 106 103 105 Greatest Support 80 | 20 40 40 60 60 80 80 80 80 80 80 Greatest Overweight (x) 2 | . 2 1 2 1 1 1 1 1 1 1 Average Overweight (x) . | . 1 1 1 1 1 1 1 1 1 . Largest Inventory Capacity 26 | 8 16 18 20 20 26 26 26 26 26 26 Average Capacity 22 | 7 15 17 19 20 26 26 26 26 26 25 Most Carried 26 | 6 16 17 20 20 26 26 26 26 26 26 Average Carried 21 | 6 11 16 18 19 23 25 26 23 23 25 Final Capacity 26 | 8 16 18 20 20 26 26 26 26 26 18 Final Carried 26 | 6 16 17 18 20 26 26 26 23 24 18 Class Distribution -------------------- 63% | Hauler-Mutant 23% | Mutant 4% | Commander-Mutant 4% | Hauler-Skirmisher Dominant Class ---------------- Mutant | -10/Materials Mutant | -10/Mines Hauler-Mutant | -10/Exiles Hauler-Mutant | -9/Mines Hauler-Mutant | -8/Materials Hauler-Mutant | -8/Storage Hauler-Mutant | -8/Garrison Hauler-Mutant | -7/Factory Hauler-Mutant | -7/Garrison Hauler-Skirmisher | -7/Factory Resources | -11 -10 -10 -10 -9 -8 -8 -8 -7 -7 -7 ----------- Run | Scr Mat Min Exi Min Mat Sto Gar Fac Gar Fac Matter Collected 2015 | 210 69 88 20 159 454 398 10 . 363 244 Remotely . | . . . . . . . . . . . Salvage Created 2622 | 58 251 92 . 308 917 177 . 40 452 327 Parts 172 | 2 25 12 . 16 63 16 . 2 17 19 Haulers Intercepted . | . . . . . . . . . . . Recyclers Shooed . | . . . . . . . . . . . Parts Field Recycled . | . . . . . . . . . . . Retrieved Matter . | . . . . . . . . . . . Parts Self-Destructed . | . . . . . . . . . . . Prevented . | . . . . . . . . . . . Kills | -11 -10 -10 -10 -9 -8 -8 -8 -7 -7 -7 ------- Run | Scr Mat Min Exi Min Mat Sto Gar Fac Gar Fac Combat Hostiles Destroyed 69 | . 8 6 . 10 19 5 . 1 13 7 Melee 4 | . . . . 1 . . . . . 3 Guns 61 | . 8 5 . 9 19 5 . 1 10 4 AOE 4 | . . 1 . . . . . . 3 . Classes Destroyed 12 | 1 4 1 . 2 2 . . . 2 . Worker 2 | . . . . 2 . . . . . . Builder 3 | . 1 . . 1 . . . . . 1 Tunneler 2 | . . 1 . . 1 . . . . . Recycler 2 | 1 . . . 1 . . . . . . Watcher 5 | . 2 . . . 2 1 . . . . Swarmer 33 | . 6 6 . 3 6 3 . . 6 3 Grunt 11 | . 2 . . . 5 1 . . 3 . Brawler 1 | . . . . . . . . . 1 . Sentry 11 | . . . . . 7 1 . . 1 2 Hunter 3 | . . . . . 2 . . 1 . . Programmer 4 | . . . . . . . . . 2 2 Assembled 7 | . . . . 7 . . . . . . Best Kill Streak 8 | 1 7 3 . 3 6 3 . 1 8 2 Combat Bots Only 8 | . 6 3 . 3 6 3 . 1 8 2 Max Kills in Single Turn 2 | 1 2 1 . 2 1 1 . 1 2 2 Gunslinging . | . . . . . . . . . . . Exploded 2 | . . 1 . . . . . . 2 . Melee 1 | . . . . 1 . . . . . 1 Uniques/NPCs Destroyed . | . . . . . . . . . . . Combat | -11 -10 -10 -10 -9 -8 -8 -8 -7 -7 -7 -------- Run | Scr Mat Min Exi Min Mat Sto Gar Fac Gar Fac Damage Taken 4182 | . 358 176 . 335 844 351 . 144 1237 737 Core 372 | . 35 12 . 39 53 10 . 35 112 76 Absorbed by Shields . | . . . . . . . . . . . Core Remaining (%) 84 | 100 . . . 65 . . 88 . . . Volleys Fired 203 | 1 18 13 . 30 66 19 . 6 36 14 Largest 2 | 2 2 2 . 2 2 2 . 2 2 2 Hottest 90 | 80 90 68 . 68 48 48 . 46 48 53 Shots Fired 393 | 2 35 23 . 56 132 36 . 12 69 28 Gun 388 | 2 35 23 . 56 132 34 . 12 66 28 Cannon . | . . . . . . . . . . . Launcher 5 | . . . . . . 2 . . 3 . Special . | . . . . . . . . . . . Kinetic 321 | . 5 13 . 31 132 34 . 12 66 28 Thermal 11 | . 11 . . . . . . . . . Explosive 5 | . . . . . . 2 . . 3 . Electromagnetic 56 | 2 19 10 . 25 . . . . . . Robot Hit Streak 15 | 1 7 5 . 9 15 4 . 7 10 9 Robot Miss Streak 4 | 1 2 2 . 3 3 3 . 3 3 4 Penetration Max . | . . . . . . . . . . . Secondary Targets 6 | . 2 . . . 1 . . . 3 . Max Gunslinging Chain 1 | . 1 . . . 1 . . . 1 . Shots Hit Robots 282 | 1 23 18 . 43 93 22 . 8 45 29 Core Hits 144 | 1 14 6 . 26 41 9 . 2 25 20 Critical Hits 1 | . . . . . . . . . . 1 Critical Kills . | . . . . . . . . . . . Critical Parts Destroyed 1 | . . . . . . . . . . 1 Melee Attacks 23 | . . . . . . 5 3 . . 15 Impact 1 | . . . . . . . . . . 1 Slashing 22 | . . . . . . 5 3 . . 14 Piercing . | . . . . . . . . . . . Sneak Attacks . | . . . . . . . . . . . Combat Hostiles . | . . . . . . . . . . . Follow-up Attacks 1 | . . . . . . . . . . 1 Damage Inflicted 5070 | 15 326 227 . 571 1527 365 . 88 1230 721 Guns 4109 | 15 290 141 . 482 1488 327 . 88 771 507 Cannons . | . . . . . . . . . . . Explosions 565 | . 36 45 . . . 38 . . 446 . Melee 214 | . . . . . . . . . . 214 Ramming 182 | . . 41 . 89 39 . . . 13 . Kinetic 3500 | . 12 67 . 240 1488 327 . 88 771 507 Thermal 183 | . 138 45 . . . . . . . . Explosive 484 | . . . . . . 38 . . 446 . Electromagnetic 507 | 15 176 74 . 242 . . . . . . Impact 28 | . . . . . . . . . . 28 Slashing 186 | . . . . . . . . . . 186 Piercing . | . . . . . . . . . . . Highest Corruption 7 | . 1 1 1 4 . 1 1 . 3 7 Average Corruption 1 | . 1 1 1 1 . 1 1 . 2 3 Corruption Purged . | . . . . . . . . . . . Effects 58 | . 6 7 1 11 . 4 . . 6 23 Message Errors 22 | . 1 6 . 3 . 4 . . 1 7 Matter Fused 10 | . . . . 2 . . . . 2 6 Heat Flow Errors 3 | . . . . . . . . . 1 2 Energy Discharges 14 | . 4 1 1 4 . . . . 2 2 Data Loss (minor) 6 | . . . . 2 . . . . . 4 Targeting Errors 3 | . 1 . . . . . . . . 2 Overload Shots . | . . . . . . . . . . . Overflow Damage 26 | . . . . 19 . . . . . 7 Projectiles . | . . . . . . . . . . . Explosions . | . . . . . . . . . . . Melee 26 | . . . . 19 . . . . . 7 Knockbacks . | . . . . . . . . . . . Impact . | . . . . . . . . . . . Kinetic . | . . . . . . . . . . . Secondary . | . . . . . . . . . . . Self-Inflicted Damage 37 | . . . . 37 . . . . . . Shots . | . . . . . . . . . . . Rammed 7 | . . 4 . 3 . . . . . . Targets Rammed 11 | . . 5 . 4 1 . . . 1 . Kicked 3 | . . . . 1 1 . . . 1 . Crushed 1 | . . 1 . . . . . . . . Highest Temperature 236 | 18 226 45 . 70 114 114 . . 66 236 Average Temperature 42 | 12 99 20 . 23 31 56 . . 24 63 Received Heat Transfer 645 | . 81 . . . 171 81 . . 246 66 Effects 1 | . 1 . . . . . . . . . Energy Bleed 1 | . 1 . . . . . . . . . Siege Activations . | . . . . . . . . . . . Robots Corrupted . | . . . . . . . . . . . Combat Hostiles . | . . . . . . . . . . . Parts Fried . | . . . . . . . . . . . Impact Corruptions 1 | . . . . 1 . . . . . . Robots Melted . | . . . . . . . . . . . Combat Hostiles . | . . . . . . . . . . . Parts Melted . | . . . . . . . . . . . Heat Transferred 346 | . 346 . . . . . . . . . Parts Sabotaged . | . . . . . . . . . . . Parts Stolen . | . . . . . . . . . . . Parts Stripped . | . . . . . . . . . . . Power Chain Reactions 2 | . 1 1 . . . . . . . . Missiles Intercepted . | . . . . . . . . . . . Alert | -11 -10 -10 -10 -9 -8 -8 -8 -7 -7 -7 ------- Run | Scr Mat Min Exi Min Mat Sto Gar Fac Gar Fac Peak Influence 568 | 5 199 170 . 135 398 398 316 214 568 557 Initial 298 | . 3 . . . 1 167 258 165 149 298 Average 123 | 5 47 26 . 10 84 118 286 192 398 335 Maximum Alert Level 2 | . . . . . 1 1 1 1 2 2 Low Security (%) 74 | 100 100 100 . 100 91 71 . 48 14 13 Level 1 17 | . . . . . 8 28 100 51 31 47 Level 2 7 | . . . . . . . . . 53 39 Level 3 . | . . . . . . . . . . . Level 4 . | . . . . . . . . . . . Level 5 . | . . . . . . . . . . . High Security . | . . . . . . . . . . . Max Security . | . . . . . . . . . . . Squads Dispatched 12 | . . . . . 3 3 . 1 . 5 Investigation 2 | . . . . . 1 1 . . . . Extermination 3 | . . . . . . . . . . 3 Reinforcement . | . . . . . . . . . . . Assault 2 | . . . . . . . . . . 2 Garrison 5 | . . . . . 2 2 . 1 . . Intercept . | . . . . . . . . . . . Construction Impeded . | . . . . . . . . . . . Haulers Reinforced . | . . . . . . . . . . . Stealth | -11 -10 -10 -10 -9 -8 -8 -8 -7 -7 -7 --------- Run | Scr Mat Min Exi Min Mat Sto Gar Fac Gar Fac Distress Signals 1 | . . . . . 1 . . . . . Communications Jammed . | . . . . . . . . . . . Distress Signals . | . . . . . . . . . . . Times Spotted 133 | . 12 8 . 15 40 14 1 1 22 20 Peak Tracking Total 9 | . 6 3 . 3 8 3 3 1 7 9 Tactical Retreats 18 | . . 2 . 4 2 1 . . 8 1 Traps | -11 -10 -10 -10 -9 -8 -8 -8 -7 -7 -7 ------- Run | Scr Mat Min Exi Min Mat Sto Gar Fac Gar Fac Traps Triggered 10 | . 2 . . . 1 2 2 . 3 . Indirectly . | . . . . . . . . . . . Trap Hack Attempts . | . . . . . . . . . . . Triggered . | . . . . . . . . . . . Disarmed . | . . . . . . . . . . . Reprogrammed . | . . . . . . . . . . . Reused . | . . . . . . . . . . . Traps Extracted . | . . . . . . . . . . . Installed . | . . . . . . . . . . . Triggered . | . . . . . . . . . . . Machines | -11 -10 -10 -10 -9 -8 -8 -8 -7 -7 -7 ---------- Run | Scr Mat Min Exi Min Mat Sto Gar Fac Gar Fac Machines Disabled 5 | . . . . . 3 2 . . . . Max in Single Turn 1 | . . . . . 1 1 . . . . Garrison Access 2 | . . . . . . . . . . 2 Machines Sabotaged . | . . . . . . . . . . . Garrisons Compromised . | . . . . . . . . . . . Overloaded Fab Kills . | . . . . . . . . . . . Fab Network Shutdowns 1 | . . . . . . . . . . 1 Hacking | -11 -10 -10 -10 -9 -8 -8 -8 -7 -7 -7 --------- Run | Scr Mat Min Exi Min Mat Sto Gar Fac Gar Fac Machines Accessed 39 | . 4 . 2 . 14 12 . 1 . 6 Terminals 24 | . 4 . . . 10 9 . . . 1 Fabricators 1 | . . . . . . . . . . 1 Repair Stations 2 | . . . . . 1 1 . . . . Recycling Units 3 | . . . . . 1 1 . . . 1 Scanalyzers 3 | . . . . . 2 . . . . 1 Garrison Access 4 | . . . . . . 1 . 1 . 2 Total Hacks 96 | . 12 . 2 . 49 21 . 1 . 11 Successful 69 | . 9 . 2 . 36 15 . 1 . 6 Failed 27 | . 3 . . . 13 6 . . . 5 Catastrophic 6 | . . . . . 2 3 . . . 1 Database Lockouts . | . . . . . . . . . . . Manual 47 | . 9 . 1 . 24 9 . . . 4 Terminals 62 | . 12 . . . 31 17 . . . 2 Fabricators 5 | . . . . . . . . . . 5 Repair Stations 4 | . . . . . 2 2 . . . . Recycling Units 3 | . . . . . 1 1 . . . 1 Scanalyzers 16 | . . . . . 15 . . . . 1 Garrison Access 4 | . . . . . . 1 . 1 . 2 Terminal Hacks 25 | . 5 . 2 . 10 8 . . . . Record 1 | . . . 1 . . . . . . . Robot Analysis 5 | . 3 . . . 2 . . . . . Open Door 4 | . . . . . . 4 . . . . Branch Access Points 1 | . . . . . 1 . . . . . Terminal Index 1 | . . . . . 1 . . . . . Scanalyzer Index 1 | . . . . . 1 . . . . . Alert Level 2 | . . . . . 1 1 . . . . Unreport Threat 2 | . . . . . 1 1 . . . . Locate Traps 5 | . 2 . . . 2 1 . . . . Recall Investigation 1 | . . . . . . 1 . . . . Zone Layout 1 | . . . . . 1 . . . . . EX-Prototype ID Bank 1 | . . . 1 . . . . . . . Fabricator Hacks 2 | . . . . . . . . . . 2 Load Schematic 1 | . . . . . . . . . . 1 Build 1 | . . . . . . . . . . 1 Repair Station Hacks 4 | . . . . . 2 2 . . . . Scan Component 2 | . . . . . 1 1 . . . . Repair 2 | . . . . . 1 1 . . . . Recycling Unit Hacks 3 | . . . . . 1 1 . . . 1 Report Inventory 3 | . . . . . 1 1 . . . 1 Scanalyzer 14 | . . . . . 14 . . . . . Insert Component 7 | . . . . . 7 . . . . . Analyze 7 | . . . . . 7 . . . . . Garrison Access Hacks 4 | . . . . . . 1 . 1 . 2 Unlock Access 2 | . . . . . . 1 . 1 . . Seal Access 2 | . . . . . . . . . . 2 Unauthorized Hacks 17 | . 4 . . . 9 3 . . . 1 Terminals 16 | . 4 . . . 9 3 . . . . Track 4 | . 1 . . . 2 1 . . . . Assimilate 2 | . . . . . 2 . . . . . Botnet 8 | . 2 . . . 4 2 . . . . Operators 2 | . 1 . . . 1 . . . . . Fabricators 1 | . . . . . . . . . . 1 Siphon 1 | . . . . . . . . . . 1 Repair Stations . | . . . . . . . . . . . Recycling Units . | . . . . . . . . . . . Scanalyzers . | . . . . . . . . . . . Garrison Access . | . . . . . . . . . . . Data Cores Recovered . | . . . . . . . . . . . Used . | . . . . . . . . . . . Hacking Detections 31 | . 4 . . . 13 10 . 1 . 3 Full Trace Events . | . . . . . . . . . . . Feedback Events . | . . . . . . . . . . . Feedback Blocked . | . . . . . . . . . . . Robot Schematics Acquired . | . . . . . . . . . . . Robots Built . | . . . . . . . . . . . Matter . | . . . . . . . . . . . Time . | . . . . . . . . . . . Total Robot Build Rating . | . . . . . . . . . . . Part Schematics Acquired 6 | . . . . . 6 . . . . . Parts Built 2 | . . . . . . . . . . 2 Matter 190 | . . . . . . . . . . 190 Time 95 | . . . . . . . . . . 95 Total Part Build Rating 10 | . . . . . . . . . . 10 Parts Repaired 2 | . . . . . 1 1 . . . . Time 120 | . . . . . 50 70 . . . . Parts Recycled . | . . . . . . . . . . . Recycled Matter . | . . . . . . . . . . . Retrieved Matter . | . . . . . . . . . . . Retrieved Components . | . . . . . . . . . . . Parts Scanalyzed 7 | . . . . . 7 . . . . . Part Schematics Acquired 6 | . . . . . 6 . . . . . Parts Damaged 1 | . . . . . 1 . . . . . Bothacking | -11 -10 -10 -10 -9 -8 -8 -8 -7 -7 -7 ------------ Run | Scr Mat Min Exi Min Mat Sto Gar Fac Gar Fac Used RIF Installer 2 | . . . . . . . 1 . 1 . Coupler Efficiency 1 | . . . . . . . . . 1 . Robots Hacked . | . . . . . . . . . . . Non-combat . | . . . . . . . . . . . Combat . | . . . . . . . . . . . Robot Hacks Applied . | . . . . . . . . . . . Relay Couplers Released . | . . . . . . . . . . . Robots Rewired . | . . . . . . . . . . . Allies Hacked . | . . . . . . . . . . . Hacks Repelled . | . . . . . . . . . . . Allies | -11 -10 -10 -10 -9 -8 -8 -8 -7 -7 -7 -------- Run | Scr Mat Min Exi Min Mat Sto Gar Fac Gar Fac Total Allies 16 | . . 2 . 3 1 10 . . . . Largest Group 10 | . . 2 2 3 2 10 5 2 2 . Highest-Rated Group 173 | . . 45 45 40 24 173 80 32 32 . Highest-Rated Ally 31 | . . 31 31 16 16 29 16 16 16 . Total Orders . | . . . . . . . . . . . Ally Attacks 99 | . . . . . 9 55 23 10 2 . Total Damage 1135 | . . . . . 69 745 208 96 17 . Kills 20 | . . . . . 1 13 5 . 1 . Allies Corrupted . | . . . . . . . . . . . Allies Melted . | . . . . . . . . . . . Intel | -11 -10 -10 -10 -9 -8 -8 -8 -7 -7 -7 ------- Run | Scr Mat Min Exi Min Mat Sto Gar Fac Gar Fac Robot Analysis Total 5 | . 3 . . . 2 . . . . . Derelict Logs Recovered 6 | . . 3 . 3 . . . . . . Drone Launches . | . . . . . . . . . . . Drone Recoveries . | . . . . . . . . . . . Exploration | -11 -10 -10 -10 -9 -8 -8 -8 -7 -7 -7 ------------- Run | Scr Mat Min Exi Min Mat Sto Gar Fac Gar Fac Turns Passed 10831 | 18 1028 1282 549 1406 2234 2156 184 124 514 1336 Spaces Moved 5411 | 12 459 670 327 835 1131 659 111 76 289 842 Core . | . . . . . . . . . . . Treads 1169 | . 273 670 226 . . . . . . . Legs 4161 | 12 186 . 101 835 1131 659 111 76 289 761 Wheels . | . . . . . . . . . . . Hover 81 | . . . . . . . . . . 81 Flight . | . . . . . . . . . . . Fastest Speed 63 | 120 120 180 130 100 136 136 136 136 136 63 Average Speed 143 | 120 171 180 164 129 136 136 136 136 136 125 Slowest Speed 180 | 120 180 180 180 130 136 136 136 136 136 136 Overloaded Moves 25 | . . . . 25 . . . . . . Propulsion Burnouts . | . . . . . . . . . . . Robots Hopped . | . . . . . . . . . . . Cave-ins Triggered . | . . . . . . . . . . . Exploration Rate (%) 54 | 3 68 98 70 99 75 75 25 3 67 20 Regions Visited 10 Branch Regions 4 Pre-discovered Areas 5 | . . 1 1 2 . 1 . . . . Known Exits Taken 4 | . . 1 . . 1 1 . 1 . . Unknown Exits Taken 4 | 1 1 . 1 1 . . . . . . Scrap Searched 5 | . . 3 . 2 . . . . . . Spaces Dug 7 | . . . . . . 3 . . . 4 Terrain Destroyed 46 | . 3 6 . . . 16 . . 17 4 Melee 7 | . . . . . . 3 . . . 4 Projectile . | . . . . . . . . . . . AOE 39 | . 3 6 . . . 13 . . 17 . Terrain Rammed . | . . . . . . . . . . . Walls Destroyed . | . . . . . . . . . . . Machines Disabled . | . . . . . . . . . . . Actions | -11 -10 -10 -10 -9 -8 -8 -8 -7 -7 -7 --------- Run | Scr Mat Min Exi Min Mat Sto Gar Fac Gar Fac Total 8087 | 13 670 720 338 1109 1713 1875 139 85 351 1074 Wait 2227 | . 159 28 . 226 493 1152 16 . 2 151 Move 5399 | 11 458 669 326 834 1130 658 109 75 287 842 Hop . | . . . . . . . . . . . Pick Up 51 | . 15 2 1 8 11 3 . . 3 8 Fast Attach 17 | 1 2 . 2 1 1 8 . . . 2 Attach 20 | . 2 . 2 . 4 . . 3 3 6 Detach 4 | . 1 . 1 . . 2 . . . . Swap 43 | . 7 1 2 . 3 13 1 . 4 12 Drop 50 | . 8 2 4 6 4 13 . 1 . 12 Fire 203 | 1 18 13 . 30 66 19 . 6 36 14 Melee 22 | . . . . . . 5 3 . . 14 Ram . | . . . . . . . . . . . Kick 6 | . . . . 4 1 . . . 1 . Crush 5 | . . 5 . . . . . . . . Escape Stasis 25 | . . . . . . . 10 . 15 . Rewire 15 | . . . . . . 2 . . . 13 Trap . | . . . . . . . . . . . Miscellaneous . | . . . . . . . . . . . Route ------- -11/Scrapyard -10/Materials (discovered 4 exits: [*Mat x2] / [*Min x2]) -10/Mines (discovered 3 exits: [*Mat x2] / *Exi) -10/Exiles -9/Mines (discovered 2 exits: *Mat x2) -8/Materials (discovered 5 exits: *Fac x3 / *Sto x2) -8/Storage (discovered 2 exits: [*Rec] / Gar) -8/Garrison -7/Factory -7/Garrison (discovered 3 exits: *Fac x3) -7/Factory History --------- Turn | Location | Event 4 | -11/Scrapyard | Discovered new exit (range 3) 19 | -11/Scrapyard | Entered Materials 304 | -10/Materials | Build established: Mutant 326 | -10/Materials | Discovered new exit (range 7) 544 | -10/Materials | Discovered new exit (range 16) 701 | -10/Materials | Discovered new exit (range 13) 861 | -10/Materials | Discovered new exit (range 11) 1047 | -10/Materials | Entered Mines 1062 | -10/Mines | Discovered new exit (range 10) 1214 | -10/Mines | Discovered new exit (range 4) 1294 | -10/Mines | Learned location of Zion (-6) 1304 | -10/Mines | Received a Rocket Launcher from a helpful Derelict 1537 | -10/Mines | Learned Materials garrison access intel 1596 | -10/Mines | Identified exit to Exiles 1805 | -10/Mines | Deemed a non-threat by the Exiles lab entrance 1848 | -10/Mines | Found a hidden stash of uninstalled traps 2329 | -10/Mines | Entered Exiles 2329 | -10/Exiles | Accompanied by 2 allies 2359 | -10/Exiles | Led the pair of lost Derelicts to a safe place 2374 | -10/Exiles | Met 8R-AWN 2402 | -10/Exiles | Met EX-HEX 2492 | -10/Exiles | Met EX-DEC 2656 | -10/Exiles | Met EX-BIN 2681 | -10/Exiles | Aligned with FarCom system 2683 | -10/Exiles | Given EX-Vault access code 2726 | -10/Exiles | Opened EX-Vault 2737 | -10/Exiles | Found AWS/Gauss 2742 | -10/Exiles | Found Potential Leg 2745 | -10/Exiles | Found Potential Leg 2776 | -10/Exiles | Warned to stay clear of 0b10 Research branches 2861 | -10/Exiles | Build established: Hauler-Mutant 2863 | -10/Exiles | Discovered new exit (range 12) 2878 | -10/Exiles | Stole two prototypes: Potential Leg, AWS/Gauss 2878 | -10/Exiles | Entered Mines 2888 | -9/Mines | Learned location of Storage (-8) 3013 | -9/Mines | Discovered new exit (range 12) 3015 | -9/Mines | Assembled infested the area 3020 | -9/Mines | Assisted by a Guerilla fighting off Assembled 3381 | -9/Mines | Discovered new exit (range 13) 3387 | -9/Mines | Learned Materials security intel 4094 | -9/Mines | Assisted by bots powering up and referring to "LRC-V3" 4146 | -9/Mines | Joined a pair of Derelicts in attacking an 0b10 outpost 4284 | -9/Mines | Entered Materials 4284 | -8/Materials | Accompanied by 2 allies 4284 | -8/Materials | Evolved 4 slots: Propulsion x1, Utility x3 4286 | -8/Materials | Loaded intel: 1 garrison access location 4436 | -8/Materials | Repaired Cmb. Airjet 4755 | -8/Materials | Discovered new exit (range 16) 4869 | -8/Materials | Discovered new exit (range 16) 5798 | -8/Materials | Identified exit to Storage 5819 | -8/Materials | Discovered new exit (range 11) 6374 | -8/Materials | Discovered new exit (range 5) 6400 | -8/Materials | Garrison activated, responded to threat 6518 | -8/Materials | Entered Storage 7997 | -8/Storage | Assisted by bots powering up and referring to "LRC-V3" 8021 | -8/Storage | Learned location of Armory (-4) 8273 | -8/Storage | Build established: Commander-Mutant 8526 | -8/Storage | Used back door to open Recycling access 8526 | -8/Storage | Discovered new exit (range 3) 8564 | -8/Storage | Garrison activated, responded to threat 8580 | -8/Storage | Identified exit to Garrison 8662 | -8/Storage | Repaired Broken Cmb. Airjet 8674 | -8/Storage | Entered Garrison 8674 | -8/Garrison | Accompanied by 5 allies 8681 | -8/Garrison | Installed Relay Interface Framework 8746 | -8/Garrison | Triggered checkpoint 8795 | -8/Garrison | Build established: Hauler-Mutant 8796 | -8/Garrison | Triggered checkpoint 8837 | -8/Garrison | Discovered new exit (range 13) 8858 | -8/Garrison | Entered Factory 8858 | -7/Factory | Accompanied by 2 allies 8858 | -7/Factory | Evolved 2 slots: Propulsion x1, Utility x1 8860 | -7/Factory | FarCom data flow suspended 8912 | -7/Factory | Garrison activated, responded to threat 8971 | -7/Factory | Identified exit to Garrison 8982 | -7/Factory | Entered Garrison 8982 | -7/Garrison | Accompanied by 2 allies 9106 | -7/Garrison | Triggered checkpoint 9135 | -7/Garrison | Destroyed 8 combat bots 9196 | -7/Garrison | Discovered new exit (range 13) 9286 | -7/Garrison | Triggered checkpoint 9357 | -7/Garrison | Discovered new exit (range 10) 9465 | -7/Garrison | Discovered new exit (range 13) 9480 | -7/Garrison | Identified exit to Factory 9490 | -7/Garrison | Expanded RIF knowledge: Coupler Efficiency 9496 | -7/Garrison | Entered Factory 10222 | -7/Factory | Fabricated Cmb. Airjet? 10309 | -7/Factory | Local fabrication network quarantined 10736 | -7/Factory | First assault squad dispatched 10832 | -7/Factory | Self-destructed Last Messages --------------- 10760_ Dropped Flak Gun. 10761_ Acquired Power Maul. 10763_ Dropped Imp. Assault Rifle. 10764_ Acquired Imp. Medium Armor Plating. 10765_ Dropped Imp. Light Armor Plating. 10769_ Acquired Med. Reactive Plating. 10771_ 1PCQ#D#9WN262HI&U,QA1FCGUBQKS42:0#BL 10795_ L3BO Map ----- +----------------------------------------------------+ | ?????????????????????????????????????????????????? | | ?????????????????????????????????????????????????? | | ?????????????????????????????????????????????????? | | ?????????????????????????????????????????????????? | | ?????????????????????????????????????????????????? | | ?????????????????????????????????????????????????? | | ?????????????????????????????????????????????????? | | ?????????????????????????????????????????????????? | | ?????????????????????????????????????????????????? | | ?????????? ????????????????????????????????????? | | ?????????? ????????????????????????????????????? | | ?????????? ????????????????????????????????????? | | ?????????? ????????????????????????????????????? | | ?????????? ????????????????????????????????????? | | ?????????? ????????????????????????????????????? | | ?????????? ????????????????????????????????????? | | ?????????? ????????????????????????????????????? | | ?????????? ????????????????????????????????????? | | ?????????? ??????????????????????????????????? ? | | ?????????? ????????????????????????????????? ? | | ??????????# #???????????????????????????????? # | | ??????????# #??????????????????????????????? | | ??????????# #?????????????????????????????? | | ??????????# #???# ???????????????#+###+## | | ??????????# #???# ############# | | ??????????# #???# r @ g | | ??????????#[#???####### b | | ??????????#%#?????????# g | | ??????????#=#?????##### p k ]] | | ??????????# #####? # """l""" ""#### ] | | ??????????# #/ = !# """g""" Y"#??????? ? | | ########### T # # b""" """ ""#??????????? | | =* "" + """ # l #??????????? | | ########### # """ # #??????????? | | ??????????# # """ #u######### ###??????????? | | ??????????## ##? # #??###### #????????????? | | ???????????# ##+##+##m#? # #????????????? | | ???????????# #? # #????????????? | | ??########## # # #????????????? | | ??#! ]# # # #????????????? | | ??# # + # #????????????? | | ??#[ "" # ######### #????????????? | | ??# [=["" # "%" #????????????? | | ??#!=[=""" + ########+##########????????????? | | ??#[!=[""" # ##+#?????? ????????????????????? | | ??# """ ##### ????? """ #??????????????????? | | ??# #???# ?? """?#??????????????????? | | ??# #???# """ # """????????????????????? | | ??##########???# """ ] # ???????????????????? | | ???????????????# """ #] ! ???????????????????? | +----------------------------------------------------+ Best States ------------- Heat Dissipation 34 Energy Generation 16 Energy Capacity 290 Matter Stores 300 Matter Capacity 300 Sight Range 20 Robot Scan Range 16 Terrain Scan Density 10 Armor Coverage 375 Propulsion Shielding 66 Evasion (%) 52 Recoil Reduction 2 Defensive Hacking 10 Item Schematics ----------------- Cmb. Airjet | -8/Materials | Scanalyzed Lrg. Storage Unit | -8/Materials | Scanalyzed Katana | -8/Materials | Scanalyzed Missile Launcher | -8/Materials | Scanalyzed Lgt. Treads | -8/Materials | Scanalyzed System Shield | -8/Materials | Scanalyzed Robot Schematics ------------------ None Fabricated ------------ Cmb. Airjet | x2 | -7/Factory Alien Tech Used ----------------- None Achievements -------------- None Challenges ------------ None Game ------ Seed SensorSmartbombDetonator Manual? 0 Play Time 01:20:37 Cumulative 114.9 hours Start 2020.11.11 @ 23:32:48 End 2020.11.12 @ 08:41:17 Sessions 3 Manual Loads 0 Difficulty Rogue Special Mode Halloween2020/ForbiddenLore Game No. 97 Rogue 97 Adventurer 0 Explorer 0 Win Type - Total 3 Types 3/0/0/0/0/0/0/0/0 Lore% 42 Gallery% 55 Achievement% 42 Wizard Run 0 Options --------- ASCII 1 Keyboard 1 Movement Arrows Keybinds 0 Fullscreen 1 Font 24/Proggy Map View 76x50 Tactical HUD 1 Map Filters NONE Filters NONE Steam 1 RUN: 77311e55-13b9-4319-9467-a2210cd5bee5